[Event "*** Titled Tuesday Blitz"]
[Site "Chess.com"]
[Date "2020.12.01"]
[Round "4"]
[White "tvjosue"]
[Black "AniJak"]
[Result "1/2-1/2"]
[WhiteElo "2569"]
[BlackElo "2389"]
[TimeControl "180+1"]
[EndTime "10:39:39 PST"]
[Termination "Game drawn by repetition"]

1. b3 {[%clk 0:02:40]} 1... e5 {[%clk 0:02:59]} 2. Bb2 {[%clk 0:02:37.9]} 2...
Nc6 {[%clk 0:02:59]} 3. e3 {[%clk 0:02:36.8]} 3... g6 {[%clk 0:02:53.2]} 4. Bb5
{[%clk 0:02:35]} 4... Bg7 {[%clk 0:02:52.3]} 5. Nf3 {[%clk 0:02:26.9]} 5... Nge7
{[%clk 0:02:44.9]} 6. d4 {[%clk 0:02:25.3]} 6... exd4 {[%clk 0:02:39.3]} 7. Nxd4
{[%clk 0:02:24.2]} 7... O-O {[%clk 0:02:18.9]} 8. Nxc6 {[%clk 0:02:06.8]} 8...
Nxc6 {[%clk 0:02:17.5]} 9. Bxg7 {[%clk 0:02:05.4]} 9... Kxg7 {[%clk 0:02:17.7]}
10. Bxc6 {[%clk 0:02:05.4]} 10... bxc6 {[%clk 0:02:12.2]} 11. Qd4+ {[%clk
0:02:05.8]} 11... Qf6 {[%clk 0:02:11.2]} 12. Qxf6+ {[%clk 0:02:04.5]} 12... Kxf6
{[%clk 0:02:12.1]} 13. c4 {[%clk 0:02:05]} 13... d6 {[%clk 0:02:07.3]} 14. Nc3
{[%clk 0:02:04]} 14... Bf5 {[%clk 0:02:05.2]} 15. f3 {[%clk 0:01:54.4]} 15...
Rfe8 {[%clk 0:02:05]} 16. Kf2 {[%clk 0:01:54.3]} 16... Re7 {[%clk 0:02:00.2]}
17. Rac1 {[%clk 0:01:53.1]} 17... Rae8 {[%clk 0:01:59.2]} 18. e4 {[%clk
0:01:52.7]} 18... Bd7 {[%clk 0:01:58.9]} 19. c5 {[%clk 0:01:52.7]} 19... Kg7
{[%clk 0:01:54.5]} 20. Rhd1 {[%clk 0:01:53]} 20... Re6 {[%clk 0:01:42.7]} 21.
Rd2 {[%clk 0:01:48.4]} 21... Bc8 {[%clk 0:01:30.8]} 22. Ne2 {[%clk 0:01:39.2]}
22... d5 {[%clk 0:01:26.1]} 23. Nd4 {[%clk 0:01:38.6]} 23... Rf6 {[%clk
0:01:24.1]} 24. Re1 {[%clk 0:01:33.1]} 24... dxe4 {[%clk 0:01:22.8]} 25. Rde2
{[%clk 0:01:33.4]} 25... Rd8 {[%clk 0:01:11.5]} 26. Rxe4 {[%clk 0:01:31.3]}
26... Bf5 {[%clk 0:01:08.4]} 27. Rf4 {[%clk 0:01:19.2]} 27... Rd5 {[%clk
0:01:04.2]} 28. b4 {[%clk 0:01:13]} 28... a5 {[%clk 0:00:57.2]} 29. a3 {[%clk
0:01:09.6]} 29... axb4 {[%clk 0:00:57.4]} 30. axb4 {[%clk 0:01:10.5]} 30... Bd7
{[%clk 0:00:47.8]} 31. Rfe4 {[%clk 0:00:59]} 31... Bf5 {[%clk 0:00:44]} 32.
Nxf5+ {[%clk 0:00:30.8]} 32... Rfxf5 {[%clk 0:00:44.9]} 33. Re7 {[%clk
0:00:31.2]} 33... Rd2+ {[%clk 0:00:42.8]} 34. R1e2 {[%clk 0:00:30]} 34... Rd4
{[%clk 0:00:29.4]} 35. Rb2 {[%clk 0:00:29.3]} 35... Rfd5 {[%clk 0:00:27.5]} 36.
Rxc7 {[%clk 0:00:28.7]} 36... Rd2+ {[%clk 0:00:27.7]} 37. Rxd2 {[%clk
0:00:28.3]} 37... Rxd2+ {[%clk 0:00:28.6]} 38. Kg3 {[%clk 0:00:28.7]} 38... Rb2
{[%clk 0:00:27.6]} 39. Rb7 {[%clk 0:00:28.6]} 39... h5 {[%clk 0:00:24.2]} 40. h4
{[%clk 0:00:28.7]} 40... Kf6 {[%clk 0:00:24.1]} 41. Rb6 {[%clk 0:00:26.3]} 41...
Ke5 {[%clk 0:00:18.9]} 42. Rxc6 {[%clk 0:00:17.3]} 42... Rxb4 {[%clk 0:00:19]}
43. Rc7 {[%clk 0:00:17.5]} 43... Ke6 {[%clk 0:00:18.9]} 44. Kh3 {[%clk
0:00:15.3]} 44... Rc4 {[%clk 0:00:18.7]} 45. c6 {[%clk 0:00:14.4]} 45... f6
{[%clk 0:00:15.7]} 46. Rg7 {[%clk 0:00:12.9]} 46... Kf5 {[%clk 0:00:09.7]} 47.
c7 {[%clk 0:00:12.5]} 47... g5 {[%clk 0:00:08.1]} 48. hxg5 {[%clk 0:00:11.4]}
48... fxg5 {[%clk 0:00:08.5]} 49. Rh7 {[%clk 0:00:09.4]} 49... Kg6 {[%clk
0:00:08.2]} 50. Rd7 {[%clk 0:00:08.6]} 50... Kf6 {[%clk 0:00:06.6]} 51. Kg3
{[%clk 0:00:07.7]} 51... Ke6 {[%clk 0:00:06.5]} 52. Rh7 {[%clk 0:00:08.2]} 52...
h4+ {[%clk 0:00:06.1]} 53. Kh3 {[%clk 0:00:08.8]} 53... Kf6 {[%clk 0:00:05.9]}
54. Rd7 {[%clk 0:00:07.4]} 54... Ke6 {[%clk 0:00:06.1]} 55. Rh7 {[%clk
0:00:06.1]} 55... Kf6 {[%clk 0:00:06.5]} 56. Kh2 {[%clk 0:00:06.6]} 56... Ke6
{[%clk 0:00:06.5]} 57. Kg1 {[%clk 0:00:06.8]} 57... Kf6 {[%clk 0:00:06.8]} 58.
Kf1 {[%clk 0:00:06.7]} 58... Rc2 {[%clk 0:00:06.7]} 59. Kg1 {[%clk 0:00:06.4]}
59... Ke6 {[%clk 0:00:07]} 60. Kh2 {[%clk 0:00:06.3]} 60... Kf6 {[%clk 0:00:07]}
61. Kh3 {[%clk 0:00:06.5]} 61... Rc4 {[%clk 0:00:06.5]} 1/2-1/2

[Event "*** Titled Tuesday Blitz"]
[Site "Chess.com"]
[Date "2020.12.01"]
[Round "4"]
[White "diamonds13"]
[Black "Semetey"]
[Result "1-0"]
[WhiteElo "2341"]
[BlackElo "2580"]
[TimeControl "180+1"]
[EndTime "10:39:39 PST"]
[Termination "diamonds13 won on time"]

1. d4 {[%clk 0:03:00.9]} 1... Nf6 {[%clk 0:02:53.8]} 2. c4 {[%clk 0:03:00.9]}
2... g6 {[%clk 0:02:54.7]} 3. Nc3 {[%clk 0:03:00.6]} 3... d5 {[%clk 0:02:55]} 4.
cxd5 {[%clk 0:02:59.9]} 4... Nxd5 {[%clk 0:02:55.9]} 5. e4 {[%clk 0:02:59.7]}
5... Nxc3 {[%clk 0:02:55.9]} 6. bxc3 {[%clk 0:03:00.3]} 6... Bg7 {[%clk
0:02:56.5]} 7. Bc4 {[%clk 0:03:00.6]} 7... O-O {[%clk 0:02:56.2]} 8. Ne2 {[%clk
0:03:01.1]} 8... c5 {[%clk 0:02:55.9]} 9. Be3 {[%clk 0:02:59.6]} 9... Nc6 {[%clk
0:02:52.6]} 10. O-O {[%clk 0:02:58.5]} 10... Qc7 {[%clk 0:02:52.2]} 11. Rc1
{[%clk 0:02:57.2]} 11... Rd8 {[%clk 0:02:50]} 12. f3 {[%clk 0:02:56.3]} 12... b6
{[%clk 0:02:35.2]} 13. Qe1 {[%clk 0:02:54.8]} 13... Na5 {[%clk 0:02:13.9]} 14.
Bd3 {[%clk 0:02:52.6]} 14... e6 {[%clk 0:01:43.8]} 15. Qf2 {[%clk 0:02:41.9]}
15... Bb7 {[%clk 0:01:41.8]} 16. h4 {[%clk 0:02:41]} 16... h5 {[%clk 0:01:36]}
17. e5 {[%clk 0:02:12.2]} 17... Rac8 {[%clk 0:01:25.1]} 18. Rfd1 {[%clk
0:02:03.1]} 18... Bd5 {[%clk 0:01:15.2]} 19. c4 {[%clk 0:01:54.9]} 19... Bb7
{[%clk 0:01:00.1]} 20. Bg5 {[%clk 0:01:53.3]} 20... Rd7 {[%clk 0:00:58.9]} 21.
d5 {[%clk 0:01:49.9]} 21... exd5 {[%clk 0:00:57.9]} 22. e6 {[%clk 0:01:43.9]}
22... Rd6 {[%clk 0:00:47.5]} 23. Bf4 {[%clk 0:01:38.3]} 23... d4 {[%clk
0:00:46.2]} 24. Qg3 {[%clk 0:01:33.2]} 24... Rcd8 {[%clk 0:00:44.3]} 25. exf7+
{[%clk 0:01:28]} 25... Kxf7 {[%clk 0:00:38.6]} 26. Bxg6+ {[%clk 0:01:22.6]}
26... Rxg6 {[%clk 0:00:38.2]} 27. Bxc7 {[%clk 0:01:19.8]} 27... Rxg3 {[%clk
0:00:38.2]} 28. Nxg3 {[%clk 0:01:18.5]} 28... Rd7 {[%clk 0:00:28.8]} 29. Bf4
{[%clk 0:01:17.3]} 29... Ba6 {[%clk 0:00:29.2]} 30. Ne4 {[%clk 0:01:15.2]} 30...
Nxc4 {[%clk 0:00:25.3]} 31. Rxc4 {[%clk 0:01:09.3]} 31... Bxc4 {[%clk
0:00:24.8]} 32. Nd6+ {[%clk 0:01:09.4]} 32... Rxd6 {[%clk 0:00:25.2]} 33. Bxd6
{[%clk 0:01:09.4]} 33... Ke6 {[%clk 0:00:19.6]} 34. Bf4 {[%clk 0:01:08]} 34...
Bxa2 {[%clk 0:00:17]} 35. Ra1 {[%clk 0:01:07.5]} 35... Bb3 {[%clk 0:00:16.2]}
36. Rxa7 {[%clk 0:01:05.9]} 36... Bf6 {[%clk 0:00:16.6]} 37. Rb7 {[%clk
0:01:05]} 37... Bd8 {[%clk 0:00:14.8]} 38. Bg5 {[%clk 0:01:01.9]} 38... Bxg5
{[%clk 0:00:12]} 39. Rxb6+ {[%clk 0:01:02.1]} 39... Kf5 {[%clk 0:00:10.2]} 40.
hxg5 {[%clk 0:01:00.3]} 40... c4 {[%clk 0:00:07.5]} 41. Rb5+ {[%clk 0:00:58.2]}
41... Kg6 {[%clk 0:00:06.6]} 42. Kf2 {[%clk 0:00:53.8]} 42... Bc2 {[%clk
0:00:02.9]} 43. Ke2 {[%clk 0:00:46.5]} 43... Bd3+ {[%clk 0:00:01.6]} 44. Kd1
{[%clk 0:00:42.7]} 44... Bf1 {[%clk 0:00:01.7]} 45. g3 {[%clk 0:00:39.7]} 45...
c3 {[%clk 0:00:01.8]} 46. Rd5 {[%clk 0:00:33]} 46... d3 {[%clk 0:00:02.2]} 47.
Rc5 {[%clk 0:00:32]} 47... c2+ {[%clk 0:00:02.4]} 48. Kd2 {[%clk 0:00:31.3]}
48... Be2 {[%clk 0:00:02.9]} 49. f4 {[%clk 0:00:29.9]} 49... Bf1 {[%clk
0:00:03.3]} 50. Ke3 {[%clk 0:00:27.2]} 50... Be2 {[%clk 0:00:03]} 51. Rc6+
{[%clk 0:00:21.5]} 51... Kf5 {[%clk 0:00:02.8]} 52. Rc3 {[%clk 0:00:19.9]} 52...
Kg6 {[%clk 0:00:02.3]} 53. Kd2 {[%clk 0:00:19.4]} 53... Kf5 {[%clk 0:00:02.3]}
54. Rc5+ {[%clk 0:00:18.3]} 54... Kg6 {[%clk 0:00:02.4]} 55. Rc6+ {[%clk
0:00:18.3]} 55... Kf5 {[%clk 0:00:02.7]} 56. Rf6+ {[%clk 0:00:18.6]} 56... Kg4
{[%clk 0:00:02.3]} 57. g6 {[%clk 0:00:18.8]} 57... Kxg3 {[%clk 0:00:02.7]} 58.
g7 {[%clk 0:00:18.9]} 58... Kf2 {[%clk 0:00:03.4]} 59. g8=Q {[%clk 0:00:18.7]}
59... c1=Q+ {[%clk 0:00:03.6]} 60. Kxc1 {[%clk 0:00:18.2]} 60... Ke1 {[%clk
0:00:04.5]} 61. Qg1+ {[%clk 0:00:15.8]} 1-0

[Event "*** Titled Tuesday Blitz"]
[Site "Chess.com"]
[Date "2020.12.01"]
[Round "4"]
[White "KetiGrant"]
[Black "carloseduar100"]
[Result "1/2-1/2"]
[WhiteElo "2361"]
[BlackElo "2049"]
[TimeControl "180+1"]
[EndTime "10:39:41 PST"]
[Termination "Game drawn by agreement"]

1. e4 {[%clk 0:03:00.9]} 1... e6 {[%clk 0:02:59.5]} 2. d4 {[%clk 0:03:00.5]}
2... d5 {[%clk 0:02:51.3]} 3. Nc3 {[%clk 0:03:00.8]} 3... Nf6 {[%clk 0:02:50.2]}
4. e5 {[%clk 0:03:00.3]} 4... Nfd7 {[%clk 0:02:45.8]} 5. f4 {[%clk 0:03:00.7]}
5... c5 {[%clk 0:02:44.3]} 6. Nf3 {[%clk 0:03:01.3]} 6... Nc6 {[%clk 0:02:44.5]}
7. Be3 {[%clk 0:03:01.2]} 7... Qb6 {[%clk 0:02:45]} 8. Na4 {[%clk 0:02:34.4]}
8... Qc7 {[%clk 0:02:36.9]} 9. Nxc5 {[%clk 0:02:31.2]} 9... Nxd4 {[%clk
0:02:36.1]} 10. Nxd4 {[%clk 0:02:25.2]} 10... Nxc5 {[%clk 0:02:31.2]} 11. Qg4
{[%clk 0:02:05]} 11... Bd7 {[%clk 0:02:26.9]} 12. Be2 {[%clk 0:01:58.3]} 12...
a6 {[%clk 0:02:08]} 13. O-O {[%clk 0:01:56.3]} 13... g6 {[%clk 0:02:04.1]} 14.
c4 {[%clk 0:01:45.8]} 14... dxc4 {[%clk 0:01:58.9]} 15. Bxc4 {[%clk 0:01:45.7]}
15... Bg7 {[%clk 0:01:48.3]} 16. Rac1 {[%clk 0:01:45.4]} 16... Qb6 {[%clk
0:01:29.8]} 17. Nb3 {[%clk 0:01:44.4]} 17... Bf8 {[%clk 0:01:19.2]} 18. Be2
{[%clk 0:01:25.5]} 18... Rc8 {[%clk 0:01:14.3]} 19. Qg3 {[%clk 0:01:24.6]} 19...
Qb4 {[%clk 0:01:04]} 20. Rc4 {[%clk 0:01:18]} 20... Ne4 {[%clk 0:00:33.7]} 21.
Rxc8+ {[%clk 0:01:16.9]} 21... Bxc8 {[%clk 0:00:31.9]} 22. Qf3 {[%clk
0:01:17.8]} 22... Bd7 {[%clk 0:00:20.9]} 23. Nd4 {[%clk 0:01:16.9]} 23... Nc5
{[%clk 0:00:14.6]} 24. b3 {[%clk 0:01:14]} 24... Be7 {[%clk 0:00:12.7]} 25. Rc1
{[%clk 0:00:49.2]} 25... O-O {[%clk 0:00:12.2]} 26. Rc4 {[%clk 0:00:47.2]} 26...
Qa5 {[%clk 0:00:09.5]} 27. b4 {[%clk 0:00:45.5]} 27... Qxa2 {[%clk 0:00:08.7]}
28. bxc5 {[%clk 0:00:44.9]} 28... Rc8 {[%clk 0:00:04.6]} 29. Rc2 {[%clk
0:00:39.7]} 29... Qa1+ {[%clk 0:00:04.3]} 30. Rc1 {[%clk 0:00:39.8]} 30... Qb2
{[%clk 0:00:04.3]} 31. Qxb7 {[%clk 0:00:35.4]} 31... Qxb7 {[%clk 0:00:03.6]} 32.
c6 {[%clk 0:00:33.8]} 32... Bxc6 {[%clk 0:00:02.9]} 33. Nxc6 {[%clk 0:00:27.7]}
33... Rxc6 {[%clk 0:00:03.8]} 34. Rd1 {[%clk 0:00:28]} 34... Rc2 {[%clk
0:00:02.7]} 35. Bf3 {[%clk 0:00:27.4]} 35... Qb2 {[%clk 0:00:02.7]} 36. Bd4
{[%clk 0:00:26.4]} 36... Kg7 {[%clk 0:00:03.1]} 37. Bxb2 {[%clk 0:00:25.7]}
37... Rxb2 {[%clk 0:00:04]} 38. Rd7 {[%clk 0:00:25.8]} 38... Bb4 {[%clk
0:00:03.1]} 39. Kf1 {[%clk 0:00:22.9]} 39... a5 {[%clk 0:00:04]} 40. Ra7 {[%clk
0:00:21.5]} 40... Rf2+ {[%clk 0:00:01.7]} 41. Kxf2 {[%clk 0:00:18.6]} 41... Bc5+
{[%clk 0:00:01.6]} 42. Ke2 {[%clk 0:00:19.5]} 42... Bxa7 {[%clk 0:00:02.5]} 43.
Kd3 {[%clk 0:00:19.6]} 43... Bc5 {[%clk 0:00:02.9]} 44. Kc4 {[%clk 0:00:19.5]}
44... Bb4 {[%clk 0:00:03.8]} 45. Kb5 {[%clk 0:00:18.8]} 45... h5 {[%clk
0:00:04.7]} 46. g3 {[%clk 0:00:16.7]} 46... f6 {[%clk 0:00:05.6]} 47. exf6+
{[%clk 0:00:15.7]} 47... Kxf6 {[%clk 0:00:06.5]} 48. Be4 {[%clk 0:00:16.3]}
48... e5 {[%clk 0:00:06.6]} 49. fxe5+ {[%clk 0:00:15.7]} 49... Kxe5 {[%clk
0:00:06.7]} 50. Bxg6 {[%clk 0:00:16.1]} 50... h4 {[%clk 0:00:07.4]} 51. gxh4
{[%clk 0:00:15.1]} 51... Kf6 {[%clk 0:00:07.8]} 52. h5 {[%clk 0:00:16]} 52...
Kg7 {[%clk 0:00:08.1]} 53. h3 {[%clk 0:00:16.2]} 53... Kh6 {[%clk 0:00:09]} 54.
Ka4 {[%clk 0:00:15.3]} 54... Be1 {[%clk 0:00:09.9]} 55. Kb3 {[%clk 0:00:16.2]}
55... Bb4 {[%clk 0:00:10.6]} 56. Kc4 {[%clk 0:00:16.2]} 56... Be1 {[%clk
0:00:11.5]} 57. Kd5 {[%clk 0:00:15.6]} 57... Bb4 {[%clk 0:00:12.4]} 58. Ke6
{[%clk 0:00:15.4]} 58... Be1 {[%clk 0:00:13.3]} 59. Kf5 {[%clk 0:00:15]} 59...
Bb4 {[%clk 0:00:14.2]} 60. Kg4 {[%clk 0:00:15.5]} 60... Be1 {[%clk 0:00:15.1]}
61. Bf7 {[%clk 0:00:15.7]} 61... Bb4 {[%clk 0:00:16]} 62. Bb3 {[%clk 0:00:15.6]}
62... Be1 {[%clk 0:00:16.9]} 63. h4 {[%clk 0:00:15.7]} 63... Bb4 {[%clk
0:00:17.8]} 64. Bd1 {[%clk 0:00:14.1]} 64... Be1 {[%clk 0:00:18.7]} 65. Kf5
{[%clk 0:00:14.5]} 65... Bb4 {[%clk 0:00:19.6]} 66. Ke4 {[%clk 0:00:15.2]} 66...
Be1 {[%clk 0:00:19.9]} 67. Kd5 {[%clk 0:00:16.1]} 67... Bxh4 {[%clk 0:00:20]}
68. Kc4 {[%clk 0:00:17]} 68... Be1 {[%clk 0:00:20.6]} 69. Kb5 {[%clk 0:00:17.9]}
69... Bb4 {[%clk 0:00:21.1]} 70. Ka4 {[%clk 0:00:18.7]} 70... Be1 {[%clk
0:00:21.6]} 71. Kb5 {[%clk 0:00:19.3]} 71... Bb4 {[%clk 0:00:22.1]} 72. Ka4
{[%clk 0:00:18.1]} 1/2-1/2

[Event "*** Titled Tuesday Blitz"]
[Site "Chess.com"]
[Date "2020.12.01"]
[Round "4"]
[White "vugarrasulov"]
[Black "pedromartinez91"]
[Result "1/2-1/2"]
[WhiteElo "2876"]
[BlackElo "2448"]
[TimeControl "180+1"]
[EndTime "10:39:43 PST"]
[Termination "Game drawn - insufficient material"]

1. e4 {[%clk 0:03:00.5]} 1... e6 {[%clk 0:02:56.5]} 2. d4 {[%clk 0:03:00.2]}
2... d5 {[%clk 0:02:56.8]} 3. Bd3 {[%clk 0:03:00]} 3... dxe4 {[%clk 0:02:54.7]}
4. Bxe4 {[%clk 0:03:00.9]} 4... Nf6 {[%clk 0:02:55.5]} 5. Bf3 {[%clk 0:03:01.4]}
5... Nbd7 {[%clk 0:02:56.4]} 6. Ne2 {[%clk 0:03:00.5]} 6... e5 {[%clk
0:02:55.4]} 7. Nbc3 {[%clk 0:02:56.9]} 7... Bd6 {[%clk 0:02:55.2]} 8. O-O {[%clk
0:02:56.4]} 8... O-O {[%clk 0:02:55.2]} 9. Bg5 {[%clk 0:02:56.2]} 9... Re8
{[%clk 0:02:55]} 10. Ne4 {[%clk 0:02:54.1]} 10... Be7 {[%clk 0:02:53.7]} 11.
Bxf6 {[%clk 0:02:51.7]} 11... Bxf6 {[%clk 0:02:54.6]} 12. d5 {[%clk 0:02:51.7]}
12... Be7 {[%clk 0:02:49.4]} 13. Bg4 {[%clk 0:02:40.8]} 13... g6 {[%clk
0:02:36.1]} 14. d6 {[%clk 0:02:33.8]} 14... cxd6 {[%clk 0:02:12.5]} 15. Nxd6
{[%clk 0:02:34.7]} 15... Bxd6 {[%clk 0:02:09.1]} 16. Qxd6 {[%clk 0:02:35.6]}
16... Nb6 {[%clk 0:02:07.1]} 17. Qxd8 {[%clk 0:02:28.6]} 17... Rxd8 {[%clk
0:02:06.9]} 18. Bf3 {[%clk 0:02:23.8]} 18... Nc4 {[%clk 0:01:46.8]} 19. Rfd1
{[%clk 0:02:19.8]} 19... Nd2 {[%clk 0:01:44.2]} 20. Nc3 {[%clk 0:02:09]} 20...
Nxf3+ {[%clk 0:01:39.2]} 21. gxf3 {[%clk 0:02:09.9]} 21... Be6 {[%clk
0:01:34.6]} 22. Ne4 {[%clk 0:02:09.7]} 22... Rac8 {[%clk 0:01:24]} 23. c3 {[%clk
0:02:10]} 23... Rxd1+ {[%clk 0:01:12]} 24. Rxd1 {[%clk 0:02:10.9]} 24... Bxa2
{[%clk 0:01:12.6]} 25. Ra1 {[%clk 0:02:09]} 25... Be6 {[%clk 0:00:56.7]} 26.
Rxa7 {[%clk 0:02:08.6]} 26... Rd8 {[%clk 0:00:52.3]} 27. Kg2 {[%clk 0:02:06.7]}
27... b5 {[%clk 0:00:45.9]} 28. Rb7 {[%clk 0:02:01.9]} 28... Bc4 {[%clk
0:00:44.6]} 29. b3 {[%clk 0:01:57.2]} 29... Be2 {[%clk 0:00:37.3]} 30. Re7
{[%clk 0:01:50.5]} 30... Rd3 {[%clk 0:00:29.5]} 31. Ng5 {[%clk 0:01:14.3]} 31...
h6 {[%clk 0:00:19.5]} 32. Rxe5 {[%clk 0:01:12.8]} 32... Bd1 {[%clk 0:00:19.7]}
33. Nh3 {[%clk 0:00:56.6]} 33... Bxf3+ {[%clk 0:00:19.5]} 34. Kg3 {[%clk
0:00:57.2]} 34... Rxc3 {[%clk 0:00:12.9]} 35. Re3 {[%clk 0:00:57]} 35... Rxe3
{[%clk 0:00:10.9]} 36. fxe3 {[%clk 0:00:57.9]} 36... Bd5 {[%clk 0:00:11.7]} 37.
b4 {[%clk 0:00:58.1]} 37... g5 {[%clk 0:00:11.7]} 38. Nf2 {[%clk 0:00:56.6]}
38... f5 {[%clk 0:00:11.1]} 39. Nd1 {[%clk 0:00:53]} 39... Kg7 {[%clk 0:00:11]}
40. Nc3 {[%clk 0:00:53.4]} 40... Bc6 {[%clk 0:00:10]} 41. Ne2 {[%clk 0:00:53.5]}
41... Kf6 {[%clk 0:00:09]} 42. Nd4 {[%clk 0:00:54.1]} 42... Bd7 {[%clk
0:00:09.6]} 43. h4 {[%clk 0:00:52]} 43... Ke5 {[%clk 0:00:10]} 44. Nf3+ {[%clk
0:00:51.1]} 44... Ke4 {[%clk 0:00:07.7]} 45. hxg5 {[%clk 0:00:51]} 45... hxg5
{[%clk 0:00:08.6]} 46. Kf2 {[%clk 0:00:42.5]} 46... g4 {[%clk 0:00:05.7]} 47.
Ng5+ {[%clk 0:00:42.3]} 47... Kd3 {[%clk 0:00:05.4]} 48. Nf7 {[%clk 0:00:42.1]}
48... Kc3 {[%clk 0:00:04]} 49. Ne5 {[%clk 0:00:39.6]} 49... Be8 {[%clk
0:00:02.4]} 50. e4 {[%clk 0:00:36]} 50... fxe4 {[%clk 0:00:02]} 51. Nxg4 {[%clk
0:00:36.5]} 51... Kxb4 {[%clk 0:00:01.9]} 52. Ke3 {[%clk 0:00:37.1]} 52... Kc3
{[%clk 0:00:02.3]} 53. Kxe4 {[%clk 0:00:34.3]} 53... b4 {[%clk 0:00:02.8]} 54.
Ne3 {[%clk 0:00:34.6]} 54... b3 {[%clk 0:00:03.3]} 55. Nd1+ {[%clk 0:00:32.7]}
55... Kc2 {[%clk 0:00:02.8]} 56. Ne3+ {[%clk 0:00:31.8]} 56... Kd2 {[%clk
0:00:03.2]} 57. Kd4 {[%clk 0:00:31.7]} 57... Bf7 {[%clk 0:00:02.6]} 58. Nf1+
{[%clk 0:00:31.9]} 58... Ke1 {[%clk 0:00:02.7]} 59. Ne3 {[%clk 0:00:31.9]} 59...
b2 {[%clk 0:00:02.8]} 60. Nc2+ {[%clk 0:00:31.4]} 60... Kd2 {[%clk 0:00:03.2]}
61. Na3 {[%clk 0:00:32.3]} 61... Kc1 {[%clk 0:00:03.2]} 62. Kc3 {[%clk
0:00:32.5]} 62... Bg8 {[%clk 0:00:02.8]} 63. Kb4 {[%clk 0:00:32.9]} 63... Ba2
{[%clk 0:00:03.1]} 64. Kc3 {[%clk 0:00:32.9]} 64... Bb1 {[%clk 0:00:04]} 65. Nc4
{[%clk 0:00:32.2]} 65... Be4 {[%clk 0:00:03.5]} 66. Nxb2 {[%clk 0:00:32.1]}
1/2-1/2

[Event "*** Titled Tuesday Blitz"]
[Site "Chess.com"]
[Date "2020.12.01"]
[Round "4"]
[White "ozates"]
[Black "vovachesss"]
[Result "0-1"]
[WhiteElo "2397"]
[BlackElo "2618"]
[TimeControl "180+1"]
[EndTime "10:39:44 PST"]
[Termination "vovachesss won by resignation"]

1. d4 {[%clk 0:03:00.9]} 1... Nf6 {[%clk 0:02:59.1]} 2. Bg5 {[%clk 0:03:01.4]}
2... c5 {[%clk 0:02:57.5]} 3. Nc3 {[%clk 0:03:00.4]} 3... cxd4 {[%clk
0:02:56.8]} 4. Qxd4 {[%clk 0:03:01.3]} 4... Nc6 {[%clk 0:02:57.2]} 5. Qa4 {[%clk
0:03:01.7]} 5... e6 {[%clk 0:02:56.9]} 6. e4 {[%clk 0:02:59.7]} 6... Be7 {[%clk
0:02:56]} 7. O-O-O {[%clk 0:02:57.7]} 7... O-O {[%clk 0:02:53.4]} 8. f4 {[%clk
0:02:48.4]} 8... Ng4 {[%clk 0:02:51.1]} 9. Bxe7 {[%clk 0:02:35.4]} 9... Qxe7
{[%clk 0:02:52]} 10. Nh3 {[%clk 0:02:35.6]} 10... a6 {[%clk 0:02:33.3]} 11. e5
{[%clk 0:02:30.9]} 11... Rb8 {[%clk 0:02:17.8]} 12. Be2 {[%clk 0:02:23.6]} 12...
b5 {[%clk 0:02:10.3]} 13. Qe4 {[%clk 0:02:06.6]} 13... f5 {[%clk 0:02:08]} 14.
Qd3 {[%clk 0:01:40.4]} 14... Nb4 {[%clk 0:01:32.5]} 15. Qg3 {[%clk 0:01:35.9]}
15... Bb7 {[%clk 0:01:10.6]} 16. Bxg4 {[%clk 0:01:22.4]} 16... fxg4 {[%clk
0:01:10.7]} 17. Qxg4 {[%clk 0:01:23.3]} 17... Rbc8 {[%clk 0:01:11]} 18. a3
{[%clk 0:01:03.1]} 18... Nd5 {[%clk 0:00:23.2]} 19. Nxd5 {[%clk 0:00:23.3]}
19... Bxd5 {[%clk 0:00:24.1]} 20. Ng5 {[%clk 0:00:16.3]} 20... b4 {[%clk
0:00:21.8]} 21. Qh3 {[%clk 0:00:10.9]} 21... h6 {[%clk 0:00:20.7]} 22. Nf3
{[%clk 0:00:06.5]} 22... bxa3 {[%clk 0:00:19.8]} 23. bxa3 {[%clk 0:00:06.8]}
23... Qxa3+ {[%clk 0:00:19.6]} 24. Kd2 {[%clk 0:00:06.9]} 24... Qc3+ {[%clk
0:00:18.9]} 25. Ke2 {[%clk 0:00:07.4]} 25... Qxc2+ {[%clk 0:00:18]} 26. Rd2
{[%clk 0:00:07]} 26... Qe4+ {[%clk 0:00:18.4]} 27. Kf2 {[%clk 0:00:07.4]} 27...
Rxf4 {[%clk 0:00:14.6]} 28. Re1 {[%clk 0:00:05.8]} 28... Qb4 {[%clk 0:00:14.8]}
29. Red1 {[%clk 0:00:03.1]} 29... Rcf8 {[%clk 0:00:12.7]} 30. Rd3 {[%clk
0:00:02.2]} 30... Qb7 {[%clk 0:00:10.5]} 31. Kg1 {[%clk 0:00:02.4]} 31... Qb6+
{[%clk 0:00:06.4]} 32. Kh1 {[%clk 0:00:02.3]} 32... Qf2 {[%clk 0:00:06.1]} 33.
Qg3 {[%clk 0:00:02.3]} 33... Qxg3 {[%clk 0:00:05.4]} 34. hxg3 {[%clk 0:00:03.2]}
34... Rxf3 {[%clk 0:00:05.6]} 35. gxf3 {[%clk 0:00:04.1]} 35... Bxf3+ {[%clk
0:00:06.4]} 36. Rxf3 {[%clk 0:00:03.5]} 36... Rxf3 {[%clk 0:00:07.3]} 37. Kg2
{[%clk 0:00:03.5]} 37... Rf7 {[%clk 0:00:07.1]} 38. Rd6 {[%clk 0:00:03.8]} 38...
a5 {[%clk 0:00:07]} 39. Ra6 {[%clk 0:00:04.3]} 39... Kh7 {[%clk 0:00:06.4]} 40.
Rxa5 {[%clk 0:00:04.6]} 40... Kg6 {[%clk 0:00:07.1]} 41. Ra7 {[%clk 0:00:05.1]}
41... Kf5 {[%clk 0:00:07.3]} 42. Kh3 {[%clk 0:00:06]} 42... Kxe5 {[%clk
0:00:07.3]} 43. Ra5+ {[%clk 0:00:06.9]} 43... Kf6 {[%clk 0:00:07.6]} 44. Ra1
{[%clk 0:00:07.7]} 44... d5 {[%clk 0:00:08]} 45. Rf1+ {[%clk 0:00:08.3]} 45...
Ke7 {[%clk 0:00:08.9]} 46. Re1 {[%clk 0:00:08.5]} 46... Kd6 {[%clk 0:00:09.1]}
47. g4 {[%clk 0:00:09]} 47... e5 {[%clk 0:00:09.3]} 48. Kg3 {[%clk 0:00:09.9]}
48... e4 {[%clk 0:00:09.6]} 49. Ra1 {[%clk 0:00:10]} 49... Rc7 {[%clk 0:00:09]}
50. Ra8 {[%clk 0:00:10.9]} 50... Rc6 {[%clk 0:00:09.8]} 51. Rd8+ {[%clk
0:00:10.9]} 51... Ke5 {[%clk 0:00:09.7]} 52. Re8+ {[%clk 0:00:10.9]} 52... Re6
{[%clk 0:00:10.4]} 53. Rd8 {[%clk 0:00:10.6]} 53... g5 {[%clk 0:00:11.3]} 54.
Kf2 {[%clk 0:00:10.7]} 54... d4 {[%clk 0:00:11.8]} 55. Ke2 {[%clk 0:00:11.2]}
55... Rd6 {[%clk 0:00:08.8]} 56. Re8+ {[%clk 0:00:11.6]} 56... Kd5 {[%clk
0:00:09.4]} 57. Kd2 {[%clk 0:00:11.1]} 57... Ra6 {[%clk 0:00:07.2]} 58. Rd8+
{[%clk 0:00:11.4]} 58... Ke5 {[%clk 0:00:07.8]} 59. Re8+ {[%clk 0:00:11.7]}
59... Kf4 {[%clk 0:00:08.4]} 60. Rd8 {[%clk 0:00:11.7]} 60... Ra2+ {[%clk
0:00:08.3]} 61. Kc1 {[%clk 0:00:12.1]} 61... d3 {[%clk 0:00:09.2]} 62. Kd1
{[%clk 0:00:11.6]} 62... e3 {[%clk 0:00:08.2]} 63. Kc1 {[%clk 0:00:11.4]} 63...
e2 {[%clk 0:00:07.3]} 64. Re8 {[%clk 0:00:09.9]} 64... e1=Q+ {[%clk 0:00:06.3]}
0-1